Cogmind - Beta 13 @@@ ROGUE MODE // 2024.06.11 @ 12:06:05 Player: doughoff Result: Self-destructed Performance ------------- Evolutions (5) 2500 Regions Visited (13) 2600 Robots Destroyed (101) 505 Value Destroyed (2226) 2226 Prototype IDs (26) 520 Alien Tech Used (0) 0 Bonus (500) 500 TOTAL SCORE: 8851 Bonus ------- High Alert Combat Kills 86 Follower Combat Kills 114 Aligned with FarCom 300 Cogmind --------- Core Integrity 665/1000 Matter 274/300 Energy 100/100 System Corruption 10% Temperature Cool (0) Movement Flying (30) Location -5/Factory Parts ------- > --- POWER (2) -------- (None) > --- PROPULSION (6) --- Improved VTOL Module Improved VTOL Module Biomechanical Wings > --- UTILITY (7) ------ Machine Analyzer Hacking Suite Hacking Suite > --- WEAPON (2) ------- Gauss Rifle > --- INVENTORY (5) ---- Nuclear Pulse Thruster Nuclear Pulse Array Advanced ECM Suite Field Lobotomy Kit (3) Peak State ------------ > --- POWER ------------ Micro Nuclear Core Fission Core > --- PROPULSION ------- Improved VTOL Module Improved VTOL Module Improved VTOL Module Improved Cesium-ion Thruster Nuclear Pulse Thruster Biomechanical Wings > --- UTILITY ---------- Machine Analyzer Improved Transmission Jammer Advanced ECM Suite Improved Propulsion Shielding Layered Light Armor Plating Hacking Suite Hacking Suite > --- WEAPON ----------- Field Lobotomy Kit Katana > --- INVENTORY -------- Improved VTOL Module Nuclear Pulse Array [Rating: 77] Favorites ----------- Power Ion Engine Engine Ion Engine Power Core Micro Nuclear Core Propulsion Light Treads Treads Light Treads Leg Aluminum Leg Wheel Wheel Flight Unit Improved VTOL Module Utility Light Armor Plating Device Structural Scanner Storage Large Storage Unit Processor Machine Analyzer Hackware Hacking Suite Protection Light Armor Plating Weapon Katana Energy Gun EM Pulse Gun Ballistic Gun Minigun Ballistic Cannon Light Cannon Launcher Missile Launcher Special Weapon Mining Laser Slashing Weapon Katana Build | -11 -10 -10 -10 -9 -8 -7 -7 -7 -6 -6 -5 -5 -5 ------- Run | Yrd Mat Min Exi Min Mat Fac Low Low Fac Ext Fac Was Fac Slots Evolved 10 | . . . . . 4 2 . . 2 . 2 . . Power 1 | . . . . . . . . . 1 . . . . Propulsion 4 | . . . . . 2 1 . . . . 1 . . Utility 5 | . . . . . 2 1 . . 1 . 1 . . Weapon . | . . . . . . . . . . . . . . Parts Attached 112 | 7 13 1 3 . 61 2 . . 12 4 3 . 6 Power 11 | 1 2 . . . 5 . . . 2 . . . 1 Engine 7 | 1 2 . . . 4 . . . . . . . . Core 4 | . . . . . 1 . . . 2 . . . 1 Reactor . | . . . . . . . . . . . . . . Propulsion 35 | 2 2 . . . 24 1 . . 4 . 1 . 1 Treads 19 | . 2 . . . 17 . . . . . . . . Leg 2 | 2 . . . . . . . . . . . . . Wheel 2 | . . . . . 2 . . . . . . . . Hover . | . . . . . . . . . . . . . . Flight 12 | . . . . . 5 1 . . 4 . 1 . 1 Utility 28 | 2 2 . . . 12 1 . . 5 2 2 . 2 Device 10 | 1 . . . . 1 1 . . 3 1 2 . 1 Storage 2 | 1 1 . . . . . . . . . . . . Processor 1 | . . . . . . . . . 1 . . . . Hackware 3 | . . . . . 2 . . . . . . . 1 Protection 12 | . 1 . . . 9 . . . 1 1 . . . Artifact . | . . . . . . . . . . . . . . Weapon 38 | 2 7 1 3 . 20 . . . 1 2 . . 2 Energy Gun 4 | . . . 1 . 3 . . . . . . . . Energy Cannon . | . . . . . . . . . . . . . . Ballistic Gun 15 | 2 3 1 . . 8 . . . . . . . 1 Ballistic Cannon 3 | . 1 . 1 . 1 . . . . . . . . Launcher 3 | . . . . . 1 . . . 1 1 . . . Special Weapon 8 | . 3 . 1 . 2 . . . . 1 . . 1 Impact Weapon . | . . . . . . . . . . . . . . Slashing Weapon 5 | . . . . . 5 . . . . . . . . Piercing Weapon . | . . . . . . . . . . . . . . Special Melee Weapon . | . . . . . . . . . . . . . . Unidentified Prototypes 3 | . . . . . 1 . . . 2 . . . . Parts Lost 31 | . . . . . 19 . . . . 3 . . 9 Power 5 | . . . . . 2 . . . . 1 . . 2 Propulsion 12 | . . . . . 9 . . . . . . . 3 Utility 10 | . . . . . 6 . . . . 1 . . 3 Weapon 4 | . . . . . 2 . . . . 1 . . 1 Highest Loss Streak 9 | . . . . . 3 . . . . 3 . . 9 To Critical Strikes . | . . . . . . . . . . . . . . Average Slot Usage (%) 93 | . 99 100 79 100 92 100 100 100 97 97 82 82 95 Engine 6 | . 14 14 14 14 5 7 7 7 1 . . . . Core 3 | . . . . . 2 . . . 10 12 5 5 10 Treads 22 | . 26 28 28 28 30 . . . . . . . . Flight 8 | . . . . . . 38 38 38 33 33 35 35 34 Device 4 | . 5 . . . 3 7 7 7 6 11 11 11 9 Storage 7 | . 14 14 14 14 8 . . . . . . . . Processor 1 | . . . . . . . . . 6 6 5 5 5 Hackware 5 | . . . . . 4 15 15 15 13 12 5 5 9 Protection 14 | . 8 14 14 14 16 15 15 15 11 6 11 11 10 Energy Gun 1 | . . . 1 14 1 . . . . . . . . Ballistic Gun 5 | . 16 12 . . 6 . . . . . . . . Ballistic Cannon 1 | . 2 14 1 14 1 . . . . . . . . Launcher 2 | . . . . . 1 7 7 7 6 5 . . . Special Weapon 2 | . 8 1 5 . . . . . . . . . 4 Slashing Weapon 4 | . . . . . 6 7 7 7 6 6 5 5 4 Naked Turns . | . . . . . . . . . . . . . . Heaviest Build 40 | 14 32 32 36 33 40 21 21 21 31 28 18 18 36 Greatest Support 82 | 20 40 40 40 40 82 21 27 27 28 28 33 33 33 Greatest Overweight (x) 3 | 1 . . . . 3 . . . 1 . . . 1 Average Overweight (x) . | . . . . . . . . . . . . . . Largest Inventory Capacity 15 | 8 15 15 15 15 15 5 5 5 5 5 5 5 5 Average Capacity 12 | 7 14 15 15 15 14 5 5 5 5 5 5 5 5 Most Carried 15 | 7 15 15 15 14 15 5 5 5 5 5 4 2 5 Average Carried 11 | 4 11 14 14 14 14 3 5 5 4 5 2 2 2 Final Capacity 15 | 8 15 15 15 15 5 5 5 5 5 5 5 5 5 Final Carried 15 | 7 14 15 14 14 5 5 5 5 5 5 2 2 5 Class Distribution -------------------- 68% | Mutant 9% | Hacker-Sprinter 8% | Hacker-Mutant 7% | Scavenger-Mutant 3% | Hacker-Ninja Dominant Class ---------------- Mutant | -10/Materials Mutant | -10/Mines Mutant | -10/Exiles Mutant | -9/Mines Mutant | -8/Materials Hacker-Sprinter | -7/Factory Hacker-Sprinter | -7/Lower Caves Hacker-Sprinter | -7/Lower Caves Hacker-Mutant | -6/Factory Hacker-Ninja | -6/Extension Infiltrator-Sprinter | -5/Factory Infiltrator-Sprinter | -5/Waste Hacker-Mutant | -5/Factory Resources | -11 -10 -10 -10 -9 -8 -7 -7 -7 -6 -6 -5 -5 -5 ----------- Run | Yrd Mat Min Exi Min Mat Fac Low Low Fac Ext Fac Was Fac Matter Collected 2193 | 302 66 217 . . 1267 100 . . 90 70 27 . 54 Remotely . | . . . . . . . . . . . . . . Salvage Created 3292 | 114 96 42 . . 2166 118 . . 246 363 27 . 120 Parts 223 | 11 8 8 . . 137 10 . . 11 23 1 . 14 Haulers Intercepted 6 | . 1 . . . 3 . . . 2 . . . . Recyclers Shooed 1 | . . . . . 1 . . . . . . . . Parts Field Recycled . | . . . . . . . . . . . . . . Retrieved Matter . | . . . . . . . . . . . . . . Parts Self-Destructed . | . . . . . . . . . . . . . . Prevented . | . . . . . . . . . . . . . . Kills | -11 -10 -10 -10 -9 -8 -7 -7 -7 -6 -6 -5 -5 -5 ------- Run | Yrd Mat Min Exi Min Mat Fac Low Low Fac Ext Fac Was Fac Combat Hostiles Destroyed 48 | . 2 3 . . 38 . . . . . . . 5 Melee 5 | . . . . . 5 . . . . . . . . Guns 23 | . 2 1 . . 19 . . . . . . . 1 Cannons 6 | . . 2 . . 4 . . . . . . . . AOE 14 | . . . . . 10 . . . . . . . 4 Classes Destroyed 15 | 2 3 1 . . 9 . . . . . . . . Worker 14 | . . . . . 10 1 . . 1 . . . 2 Builder 12 | . . . . . 5 2 . . . 3 1 . 1 Tunneler 6 | 2 . . . . 1 . . . 2 . . . 1 Hauler 6 | . 1 . . . 3 . . . 2 . . . . Recycler 7 | 1 . . . . 3 1 . . . 2 . . . Mechanic 1 | . . . . . 1 . . . . . . . . Operator 3 | . . . . . 3 . . . . . . . . Watcher 4 | . 1 . . . 2 . . . . 1 . . . Swarmer 14 | . . 3 . . 6 . . . . . . . 5 Grunt 24 | . 2 . . . 22 . . . . . . . . Brawler 1 | . . . . . 1 . . . . . . . . Duelist 1 | . . . . . 1 . . . . . . . . Protector 1 | . . . . . 1 . . . . . . . . Sentry 5 | . . . . . 5 . . . . . . . . Hunter 2 | . . . . . 2 . . . . . . . . Best Kill Streak 5 | 3 2 3 . . 5 1 . . 1 2 1 . 5 Combat Bots Only 5 | . 2 3 . . 5 . . . . . . . 5 Max Kills in Single Turn 4 | 1 1 1 . . 3 1 . . 1 1 1 . 4 Gunslinging 1 | . . . . . 1 . . . . . . . . Exploded 4 | . . . . . 2 . . . . . . . 4 Melee 1 | . . . . . 1 . . . . . . . . Uniques/NPCs Destroyed . | . . . . . . . . . . . . . . Combat | -11 -10 -10 -10 -9 -8 -7 -7 -7 -6 -6 -5 -5 -5 -------- Run | Yrd Mat Min Exi Min Mat Fac Low Low Fac Ext Fac Was Fac Hostile Shots Fired 492 | . 14 14 . . 267 . 10 . 8 66 . . 113 Missed 140 | . . 3 . . 55 . 5 . 5 33 . . 39 Damage Taken 5317 | . 187 90 . . 3387 . 94 . 45 384 . . 1130 Core 818 | . 27 10 . . 417 . . . . 29 . . 335 Absorbed by Shields 4 | . . . . . . . . . . 4 . . . Redirected to Shielding 140 | . . . . . 32 . 10 . . 47 . . 51 Core Remaining (%) 81 | 100 . . . 85 24 . . 100 . 96 . . . Volleys Fired 218 | 8 40 7 . . 153 . . . . 1 . . 9 Largest 2 | 2 2 2 . . 2 . . . . 1 . . 1 Hottest 135 | 40 135 55 . . 100 . . . . . . . 28 Shots Fired 351 | 16 60 14 . . 251 . . . . 1 . . 9 Gun 232 | 16 26 7 . . 175 . . . . . . . 8 Cannon 58 | . 8 7 . . 43 . . . . . . . . Launcher 11 | . . . . . 11 . . . . . . . . Special 50 | . 26 . . . 22 . . . . 1 . . 1 Kinetic 243 | 16 34 14 . . 171 . . . . . . . 8 Thermal 48 | . 26 . . . 22 . . . . . . . . Explosive 11 | . . . . . 11 . . . . . . . . Electromagnetic 47 | . . . . . 47 . . . . . . . . Robot Hit Streak 15 | 4 7 1 . . 15 . . . . 3 . . 5 Robot Miss Streak 6 | 3 3 2 . . 6 . . . . . . . 1 Penetration Max . | . . . . . . . . . . . . . . Secondary Targets 1 | . . . . . 1 . . . . . . . . Max Gunslinging Chain 1 | . . . . . 1 . . . . . . . . Shots Hit Robots 282 | 9 21 4 . . 207 4 . . 17 11 2 . 7 Core Hits 137 | 4 8 4 . . 99 2 . . 5 4 1 . 10 Critical Kills 1 | . . . . . 1 . . . . . . . . Critical Parts Destroyed 1 | . . . . . 1 . . . . . . . . Critical Strikes 11 | . . . . . 8 . . . 3 . . . . Destroy 2 | . . . . . 2 . . . . . . . . Blast 2 | . . . . . 2 . . . . . . . . Sever 7 | . . . . . 4 . . . 3 . . . . Melee Attacks 213 | . . . . . 105 23 1 . 44 11 6 . 23 Impact . | . . . . . . . . . . . . . . Slashing 213 | . . . . . 105 23 1 . 44 11 6 . 23 Piercing . | . . . . . . . . . . . . . . Sneak Attacks 50 | . . . . . 28 4 . . 6 6 2 . 4 Combat Hostiles . | . . . . . . . . . . . . . . Follow-up Attacks . | . . . . . . . . . . . . . . Damage Inflicted 9101 | 96 307 51 . . 6192 258 . . 813 544 149 . 691 Guns 2249 | 96 181 15 . . 1915 . . . . . . . 42 Cannons 635 | . 54 36 . . 545 . . . . . . . . Explosions 1644 | . . . . . 1266 . . . . . . . 378 Melee 4488 | . . . . . 2453 258 . . 813 544 149 . 271 Ramming 13 | . . . . . 13 . . . . . . . . Kinetic 2491 | 96 235 51 . . 2067 . . . . . . . 42 Thermal 130 | . 72 . . . 58 . . . . . . . . Explosive 1586 | . . . . . 1208 . . . . . . . 378 Electromagnetic 393 | . . . . . 393 . . . . . . . . Impact . | . . . . . . . . . . . . . . Slashing 4488 | . . . . . 2453 258 . . 813 544 149 . 271 Piercing . | . . . . . . . . . . . . . . Highest Corruption 10 | . 2 2 2 2 . . . . . . . 10 10 Average Corruption 4 | . 2 2 2 2 . . . . . . . 10 10 Corruption Purged . | . . . . . . . . . . . . . . Corruption Blocked . | . . . . . . . . . . . . . . Effects 33 | . 7 4 3 1 . . . . . . . 1 17 Message Errors 8 | . 1 1 2 1 . . . . . . . 1 2 Matter Fused 8 | . 3 1 . . . . . . . . . . 4 Heat Flow Errors 4 | . . 2 1 . . . . . . . . . 1 Energy Discharges 5 | . 1 . . . . . . . . . . . 4 Data Loss (minor) 3 | . . . . . . . . . . . . . 3 Data Loss (major) 1 | . . . . . . . . . . . . . 1 Misfires 1 | . 1 . . . . . . . . . . . . Alerts 1 | . 1 . . . . . . . . . . . . Misdirections 2 | . . . . . . . . . . . . . 2 Overload Shots . | . . . . . . . . . . . . . . Overflow Damage 692 | . 4 . . . 424 59 . . 68 74 47 . 16 Projectiles 4 | . 4 . . . . . . . . . . . . Explosions 53 | . . . . . 37 . . . . . . . 16 Melee 635 | . . . . . 387 59 . . 68 74 47 . . Knockbacks 3 | . . . . . 3 . . . . . . . . Impact . | . . . . . . . . . . . . . . Kinetic 3 | . . . . . 3 . . . . . . . . Secondary . | . . . . . . . . . . . . . . Self-Inflicted Damage 298 | . . . . . 298 . . . . . . . . Shots 7 | . . . . . 7 . . . . . . . . Rammed 1 | . . . . . 1 . . . . . . . . Targets Rammed 2 | . . . . . 2 . . . . . . . . Kicked . | . . . . . . . . . . . . . . Crushed 1 | . . . . . 1 . . . . . . . . Highest Temperature 341 | . 153 242 187 . 273 . 24 64 84 184 8 12 341 Average Temperature 68 | . 42 63 99 . 63 . 9 32 28 92 5 8 168 Received Heat Transfer 1479 | . 111 . . . 1278 . . . . 90 . . . Effects 3 | . . . . . 1 . . . . . . . 2 Shutdowns 1 | . . . . . . . . . . . . . 1 Energy Bleed 1 | . . . . . 1 . . . . . . . . Short Circuit 1 | . . . . . . . . . . . . . 1 Siege Activations . | . . . . . . . . . . . . . . Robots Corrupted . | . . . . . . . . . . . . . . Combat Hostiles . | . . . . . . . . . . . . . . Parts Fried . | . . . . . . . . . . . . . . Impact Corruptions . | . . . . . . . . . . . . . . Robots Melted . | . . . . . . . . . . . . . . Combat Hostiles . | . . . . . . . . . . . . . . Parts Melted . | . . . . . . . . . . . . . . Heat Transferred 200 | . 150 . . . 50 . . . . . . . . Parts Sabotaged . | . . . . . . . . . . . . . . Parts Stolen . | . . . . . . . . . . . . . . Parts Stripped . | . . . . . . . . . . . . . . Power Chain Reactions 1 | . . . . . 1 . . . . . . . . Alert | -11 -10 -10 -10 -9 -8 -7 -7 -7 -6 -6 -5 -5 -5 ------- Run | Yrd Mat Min Exi Min Mat Fac Low Low Fac Ext Fac Was Fac Peak Influence 713 | 15 80 133 . . 713 363 . . 167 208 95 93 310 Initial 324 | . 9 18 . . . 324 . . 138 55 86 33 65 Average 175 | 4 33 111 . . 231 346 . . 117 119 88 53 97 Maximum Alert Level 3 | . . . . . 3 1 . . . 1 . . 1 Low Security (%) 70 | 100 100 100 . 100 56 . . . 100 97 100 100 90 Level 1 16 | . . . . . 21 100 . . . 2 . . 9 Level 2 10 | . . . . . 18 . . . . . . . . Level 3 2 | . . . . . 3 . . . . . . . . Level 4 . | . . . . . . . . . . . . . . Level 5 . | . . . . . . . . . . . . . . High Security . | . . . . . . . . . . . . . . Max Security . | . . . . . . . . . . . . . . Squads Dispatched 12 | . 1 . . . 6 . . . 2 . . . 3 Investigation 3 | . . . . . 1 . . . . . . . 2 Extermination . | . . . . . . . . . . . . . . Reinforcement 8 | . 1 . . . 4 . . . 2 . . . 1 Assault 1 | . . . . . 1 . . . . . . . . Garrison . | . . . . . . . . . . . . . . Intercept . | . . . . . . . . . . . . . . Searches Triggered . | . . . . . . . . . . . . . . Construction Impeded 1 | . . . . . 1 . . . . . . . . Haulers Reinforced 1 | . . . . . . . . . 1 . . . . Active Scanning Responses . | . . . . . . . . . . . . . . Cargo Convoy Interrupts . | . . . . . . . . . . . . . . Stealth | -11 -10 -10 -10 -9 -8 -7 -7 -7 -6 -6 -5 -5 -5 --------- Run | Yrd Mat Min Exi Min Mat Fac Low Low Fac Ext Fac Was Fac Distress Signals 7 | . . . . . 6 . . . . 1 . . . Communications Jammed . | . . . . . . . . . . . . . . Distress Signals . | . . . . . . . . . . . . . . Times Spotted 126 | . 7 5 . . 60 . 8 . 6 9 . 3 28 Peak Tracking Total 9 | . 2 3 . . 6 . 5 . 3 3 . 3 9 Tactical Retreats 18 | . . 1 . . 7 . 1 . 2 2 . . 5 Traps | -11 -10 -10 -10 -9 -8 -7 -7 -7 -6 -6 -5 -5 -5 ------- Run | Yrd Mat Min Exi Min Mat Fac Low Low Fac Ext Fac Was Fac Traps Triggered 7 | . 1 . . . 3 . . . . 2 1 . . Indirectly . | . . . . . . . . . . . . . . Trap Hack Attempts . | . . . . . . . . . . . . . . Triggered . | . . . . . . . . . . . . . . Disarmed . | . . . . . . . . . . . . . . Reprogrammed . | . . . . . . . . . . . . . . Reused . | . . . . . . . . . . . . . . Traps Extracted . | . . . . . . . . . . . . . . Installed . | . . . . . . . . . . . . . . Triggered . | . . . . . . . . . . . . . . Machines | -11 -10 -10 -10 -9 -8 -7 -7 -7 -6 -6 -5 -5 -5 ---------- Run | Yrd Mat Min Exi Min Mat Fac Low Low Fac Ext Fac Was Fac Machines Disabled 7 | . . . . . 3 . . . . . . . 4 Max in Single Turn 4 | . . . . . 1 . . . . . . . 4 Garrison Access 1 | . . . . . 1 . . . . . . . . Machines Repaired . | . . . . . . . . . . . . . . Machines Dismantled . | . . . . . . . . . . . . . . Machines Sabotaged . | . . . . . . . . . . . . . . Overloaded Fab Kills . | . . . . . . . . . . . . . . Hacking | -11 -10 -10 -10 -9 -8 -7 -7 -7 -6 -6 -5 -5 -5 --------- Run | Yrd Mat Min Exi Min Mat Fac Low Low Fac Ext Fac Was Fac Machines Accessed 21 | . 4 . 1 . 5 1 . . 1 7 . . 2 Terminals 18 | . 3 . . . 4 1 . . 1 7 . . 2 Fabricators . | . . . . . . . . . . . . . . Repair Stations . | . . . . . . . . . . . . . . Recycling Units 1 | . 1 . . . . . . . . . . . . Scanalyzers . | . . . . . . . . . . . . . . Garrison Access 1 | . . . . . 1 . . . . . . . . Total Hacks 39 | . 10 . 1 . 11 1 . . 1 9 . . 6 Successful 19 | . 2 . 1 . 7 . . . 1 7 . . 1 Failed 20 | . 8 . . . 4 1 . . . 2 . . 5 Catastrophic 3 | . . . . . 2 . . . . . . . 1 Database Lockouts . | . . . . . . . . . . . . . . Manual 26 | . 8 . 1 . 10 . . . . 1 . . 6 Terminals 35 | . 8 . . . 10 1 . . 1 9 . . 6 Fabricators . | . . . . . . . . . . . . . . Repair Stations . | . . . . . . . . . . . . . . Recycling Units 2 | . 2 . . . . . . . . . . . . Scanalyzers . | . . . . . . . . . . . . . . Garrison Access 1 | . . . . . 1 . . . . . . . . Terminal Hacks 11 | . . . 1 . 2 . . . 1 7 . . . Open Door 7 | . . . . . . . . . 1 6 . . . Level Access Points 1 | . . . . . . . . . . 1 . . . Maintenance Status 1 | . . . . . 1 . . . . . . . . Hauler Manifests 1 | . . . . . 1 . . . . . . . . Derelict Proto ID Bank 1 | . . . 1 . . . . . . . . . . Fabricator Hacks . | . . . . . . . . . . . . . . Repair Station Hacks . | . . . . . . . . . . . . . . Recycling Unit Hacks . | . . . . . . . . . . . . . . Scanalyzer . | . . . . . . . . . . . . . . Garrison Access Hacks 1 | . . . . . 1 . . . . . . . . Seal Access 1 | . . . . . 1 . . . . . . . . Unauthorized Hacks 7 | . 2 . . . 4 . . . . . . . 1 Terminals 7 | . 2 . . . 4 . . . . . . . 1 Botnet 7 | . 2 . . . 4 . . . . . . . 1 Fabricators . | . . . . . . . . . . . . . . Repair Stations . | . . . . . . . . . . . . . . Recycling Units . | . . . . . . . . . . . . . . Scanalyzers . | . . . . . . . . . . . . . . Garrison Access . | . . . . . . . . . . . . . . Data Cores Recovered . | . . . . . . . . . . . . . . Used . | . . . . . . . . . . . . . . Hacking Detections 11 | . 2 . . . 4 1 . . . 2 . . 2 Full Trace Events 2 | . . . . . . . . . . . . . 2 Feedback Events . | . . . . . . . . . . . . . . Feedback Blocked . | . . . . . . . . . . . . . . Robot Schematics Acquired . | . . . . . . . . . . . . . . Robots Built . | . . . . . . . . . . . . . . Authchips . | . . . . . . . . . . . . . . Time . | . . . . . . . . . . . . . . Total Robot Build Rating . | . . . . . . . . . . . . . . Part Schematics Acquired . | . . . . . . . . . . . . . . Parts Built . | . . . . . . . . . . . . . . Authchips . | . . . . . . . . . . . . . . Time . | . . . . . . . . . . . . . . Total Part Build Rating . | . . . . . . . . . . . . . . Parts Repaired . | . . . . . . . . . . . . . . Time . | . . . . . . . . . . . . . . Parts Recycled . | . . . . . . . . . . . . . . Recycled Matter . | . . . . . . . . . . . . . . Retrieved Matter . | . . . . . . . . . . . . . . Retrieved Components . | . . . . . . . . . . . . . . Parts Scanalyzed . | . . . . . . . . . . . . . . Part Schematics Acquired . | . . . . . . . . . . . . . . Parts Damaged . | . . . . . . . . . . . . . . Bothacking | -11 -10 -10 -10 -9 -8 -7 -7 -7 -6 -6 -5 -5 -5 ------------ Run | Yrd Mat Min Exi Min Mat Fac Low Low Fac Ext Fac Was Fac Used RIF Installer . | . . . . . . . . . . . . . . Robots Hacked . | . . . . . . . . . . . . . . Non-combat . | . . . . . . . . . . . . . . Combat . | . . . . . . . . . . . . . . Robot Hacks Applied . | . . . . . . . . . . . . . . Relay Couplers Released . | . . . . . . . . . . . . . . Fabnet Peak Effective % . | . . . . . . . . . . . . . . Robots Rewired . | . . . . . . . . . . . . . . Allies Hacked . | . . . . . . . . . . . . . . Hacks Repelled . | . . . . . . . . . . . . . . Allies | -11 -10 -10 -10 -9 -8 -7 -7 -7 -6 -6 -5 -5 -5 -------- Run | Yrd Mat Min Exi Min Mat Fac Low Low Fac Ext Fac Was Fac Total Allies 12 | . . . . . . . . . . 10 . 1 1 Largest Group 7 | . . . . . . . . . . 7 . 1 1 Highest-Rated Group 227 | . . . . . . . . . . 227 . 31 26 Highest-Rated Ally 85 | . . . . . . . . . . 85 . 31 26 Total Orders 1 | . . . . . . . . . . 1 . . . AID 1 | . . . . . . . . . . 1 . . . Ally Attacks 28 | . . . . . . . . . . 21 . 7 . Total Damage 713 | . . . . . . . . . . 606 . 107 . Kills 3 | . . . . . . . . . . 3 . . . Allies Corrupted . | . . . . . . . . . . . . . . Allies Melted 1 | . . . . . . . . . . 1 . . . Field Lobotomies 2 | . . . . . . . . . . 1 . . 1 Intel | -11 -10 -10 -10 -9 -8 -7 -7 -7 -6 -6 -5 -5 -5 ------- Run | Yrd Mat Min Exi Min Mat Fac Low Low Fac Ext Fac Was Fac Robot Analysis Total . | . . . . . . . . . . . . . . Derelict Logs Recovered . | . . . . . . . . . . . . . . Drone Launches . | . . . . . . . . . . . . . . Drone Recoveries . | . . . . . . . . . . . . . . Exploration | -11 -10 -10 -10 -9 -8 -7 -7 -7 -6 -6 -5 -5 -5 ------------- Run | Yrd Mat Min Exi Min Mat Fac Low Low Fac Ext Fac Was Fac Turns Passed 7867 | 125 777 225 512 101 4206 211 72 62 667 291 63 23 532 Spaces Moved 6310 | 73 373 121 318 64 1929 449 234 245 876 794 88 91 655 Core 8 | 8 . . . . . . . . . . . . . Treads 2739 | . 351 121 318 64 1885 . . . . . . . . Legs 87 | 65 22 . . . . . . . . . . . . Wheels 28 | . . . . . 28 . . . . . . . . Hover . | . . . . . . . . . . . . . . Flight 3448 | . . . . . 16 449 234 245 876 794 88 91 655 Fastest Speed 20 | 50 120 160 160 160 28 27 25 25 24 25 21 21 20 Average Speed 92 | 118 157 160 160 160 155 27 25 25 52 25 24 25 64 Slowest Speed 240 | 190 160 160 160 160 240 27 27 25 96 25 28 28 92 Overloaded Moves . | . . . . . . . . . . . . . . Propulsion Burnouts . | . . . . . . . . . . . . . . Robots Hopped 2 | . . . . . . . . . . 2 . . . Cave-ins Triggered . | . . . . . . . . . . . . . . Exploration Rate (%) 35 | 6 54 24 62 16 84 8 43 51 9 48 2 71 12 Regions Visited 13 Branch Regions 6 Pre-discovered Areas 1 | . . . . 1 . . . . . . . . . Known Exits Taken 1 | . . . . . . . . . . 1 . . . Unknown Exits Taken 10 | 1 1 1 1 1 1 1 1 1 1 . . . . Scrap Searched . | . . . . . . . . . . . . . . Spaces Dug 171 | . 22 . . . 87 19 1 . 24 . 2 . 16 Terrain Destroyed 280 | . 23 . . . 158 19 1 . 24 . 2 . 53 Melee 114 | . . . . . 52 19 1 . 24 . 2 . 16 Projectile 45 | . 23 . . . 22 . . . . . . . . AOE 120 | . . . . . 83 . . . . . . . 37 Terrain Rammed . | . . . . . . . . . . . . . . Walls Destroyed . | . . . . . . . . . . . . . . Machines Disabled . | . . . . . . . . . . . . . . Actions | -11 -10 -10 -10 -9 -8 -7 -7 -7 -6 -6 -5 -5 -5 --------- Run | Yrd Mat Min Exi Min Mat Fac Low Low Fac Ext Fac Was Fac Total 7556 | 94 454 140 320 63 2688 503 243 244 1015 863 120 90 719 Wait 550 | . 4 10 . . 368 28 9 . 68 19 23 . 21 Move 6294 | 72 372 120 317 63 1928 448 233 244 875 789 88 90 655 Hop 2 | . . . . . . . . . . 2 . . . Pick Up 63 | 7 15 . . . 31 2 . . 5 . . . 3 Fast Attach 28 | 7 . . 1 . 14 . . . 3 1 . . 2 Attach 29 | . 1 . 1 . 19 2 . . 2 . 3 . 1 Detach 5 | . . 1 . . 1 . . . 2 . . . 1 Swap 55 | . 12 1 1 . 28 . . . 7 3 . . 3 Drop 61 | . 10 1 . . 39 . . . 9 1 . . 1 Fire 218 | 8 40 7 . . 153 . . . . 1 . . 9 Melee 213 | . . . . . 105 23 1 . 44 11 6 . 23 Ram . | . . . . . . . . . . . . . . Kick . | . . . . . . . . . . . . . . Crush 2 | . . . . . 2 . . . . . . . . Escape Stasis 36 | . . . . . . . . . . 36 . . . Rewire . | . . . . . . . . . . . . . . Trap . | . . . . . . . . . . . . . . Miscellaneous . | . . . . . . . . . . . . . . Route ------- -11/Scrapyard -10/Materials (discovered 2 exits: [*Mat] / [*Min]) -10/Mines -10/Exiles (discovered 2 exits: [*Min x2]) -9/Mines -8/Materials (discovered 2 exits: *Fac x2) -7/Factory (discovered 2 exits: [*Sto] / [*Low]) -7/Lower Caves -7/Lower Caves -6/Factory -6/Extension (discovered 2 exits: *Fac x2) -5/Factory -5/Waste -5/Factory History --------- Turn | Location | Event 24 | -11/Scrapyard | Discovered new exit (range 15) 126 | -11/Scrapyard | Entered Materials 310 | -10/Materials | Build established: Mutant 522 | -10/Materials | Discovered new exit (range 7) 836 | -10/Materials | Discovered new exit (range 13) 903 | -10/Materials | Entered Mines 1117 | -10/Mines | Deemed a non-threat by the Exiles lab entrance 1117 | -10/Mines | Discovered new exit (range 5) 1128 | -10/Mines | Entered Exiles 1175 | -10/Exiles | Discovered new exit (range 15) 1245 | -10/Exiles | Met 8R-AWN 1274 | -10/Exiles | Met EX-HEX 1325 | -10/Exiles | Met EX-BIN 1348 | -10/Exiles | Aligned with FarCom system 1349 | -10/Exiles | Given EX-Vault access code 1386 | -10/Exiles | Opened EX-Vault 1399 | -10/Exiles | Found Field Lobotomy Kit 1437 | -10/Exiles | Warned to stay clear of 0b10 Research branches 1495 | -10/Exiles | Met EX-DEC 1608 | -10/Exiles | Discovered new exit (range 15) 1640 | -10/Exiles | Left Exiles lab with Field Lobotomy Kit 1640 | -10/Exiles | Entered Mines 1646 | -9/Mines | Met a Derelict bent on vengeance 1722 | -9/Mines | Discovered new exit (range 12) 1734 | -9/Mines | Learned location of Storage (-7) 1741 | -9/Mines | Entered Materials 1741 | -8/Materials | Evolved 4 slots: Propulsion x2, Utility x2 3638 | -8/Materials | Discovered new exit (range 11) 3880 | -8/Materials | Core integrity fell below 50% 4523 | -8/Materials | Discovered new exit (range 8) 4861 | -8/Materials | Build established: Scavenger-Mutant 5306 | -8/Materials | Build established: Mutant 5741 | -8/Materials | First assault squad dispatched 5801 | -8/Materials | Lost 3 parts (1p1n1u) 5947 | -8/Materials | Entered Factory 5947 | -7/Factory | Evolved 2 slots: Propulsion x1, Utility x1 5949 | -7/Factory | Discovered new exit (range 16) 6076 | -7/Factory | Discovered new exit (range 14) 6158 | -7/Factory | Entered Lower Caves 6223 | -7/Lower Caves | Spotted B-75 Beast 6229 | -7/Lower Caves | Discovered new exit (range 6) 6230 | -7/Lower Caves | Entered another Lower Caves area 6235 | -7/Lower Caves | Build established: Hacker-Sprinter 6239 | -7/Lower Caves | Encountered a Warlord checkpoint 6290 | -7/Lower Caves | Discovered new exit (range 7) 6292 | -7/Lower Caves | Entered Factory 6292 | -6/Factory | Evolved 2 slots: Power x1, Utility x1 6704 | -6/Factory | Build established: Hacker-Mutant 6958 | -6/Factory | Discovered new exit (range 6) 6959 | -6/Factory | Entered Extension 7076 | -6/Extension | Spotted B-75 Beast 7078 | -6/Extension | Assimilated B-75 Beast with FLK Orb 7082 | -6/Extension | Spotted B-75 Beast 7115 | -6/Extension | Rescued a captive Derelict 7115 | -6/Extension | Rescued a captive Derelict 7131 | -6/Extension | Rescued a captive Derelict 7132 | -6/Extension | Rescued a captive Derelict 7183 | -6/Extension | Rescued a captive Derelict 7185 | -6/Extension | Rescued a captive Derelict 7191 | -6/Extension | Rescued a captive Derelict 7191 | -6/Extension | Rescued a captive Derelict 7204 | -6/Extension | Rescued a captive Derelict 7208 | -6/Extension | Identified exit to Factory 7250 | -6/Extension | Entered Factory 7250 | -5/Factory | Evolved 2 slots: Propulsion x1, Utility x1 7276 | -5/Factory | Lost 3 parts (1p1u1w) 7313 | -5/Factory | Sucked down chute 7313 | -5/Factory | Entered Waste 7314 | -5/Waste | Met a frightened Derelict 7318 | -5/Waste | Spotted C-40 Crusher 7320 | -5/Waste | Spotted C-40 Crusher 7327 | -5/Waste | Spotted C-40 Crusher 7327 | -5/Waste | Spotted C-40 Crusher 7328 | -5/Waste | EMP discharged 7328 | -5/Waste | System corruption reached 10% 7331 | -5/Waste | Spotted C-40 Crusher 7334 | -5/Waste | Discovered new exit (range 12) 7336 | -5/Waste | Entered Factory 7351 | -5/Factory | Assimilated O-24 Administrator with FLK Orb 7868 | -5/Factory | Self-destructed Last Messages --------------- 07851_ Mic. Nuclear Core destroyed. 07852_ Fission Core destroyed. 07853_ Slug penetrates Nuclear Reactor. 07853_ Katana destroyed. 07857_ Imp. Cesium-ion Thruster destroyed. 07857_ Slug penetrates Nuclear Reactor. 07859_ Slug penetrates S-27 Virus. 07859_ Destroyed VTOL Module. 07861_ Slug penetrates Nuclear Reactor. 07862_ Imp. VTOL Module destroyed. 07863_ Slug penetrates S-27 Virus. 07863_ S-27 Virus destroyed. 07867_ Imp. VTOL Module destroyed. 07868_ Nuclear Reactor explodes. 07868_ S-27 Virus destroyed. 07868_ Destroyed Lgt. Nuclear Core. 07868_ S-27 Virus destroyed. 07868_ >> Machine Analyzer network decryption results: 07868_ DSF Access x1 07868_ Terminal x1 Map ----- +----------------------------------------------------+ | ?????????????????????????????????????????????????? | | ?????????????????????????????????????????????????? | | ?????????????????????????????????????????????????? | | ????????????????????????????????????????########## | | #####???????????????????????????????????? ! | | #???????????????????????????????????? | | """ ##??????????????????????????????????# | | """ "#??????????????????????????????????# ^ | | """ ##??????????????????????????????????# """^""" | | #???????????????????????????????????# """ """ | | """ #???????????????????????????????????# """ """ | | """ ##############+#????????????????????# | | """ # # #????????????????????# """ """ | | # """ """ ] # #????????????????????#^""" """ | | = # """ """ # #???????????????????## """ """ | | # """ """ # #???????????###?????#" | | # # #############################+# | | ##############+### | | | | | | """" """ | | """" """ | | """" """ | | # w o | | # """ """" ##############+#########+######### | | """ """" #???????#@ #???????????? | | """ """" #???????# [ #???????????" | | #???????#= %[ #???????????T | | ! #???????#%= #???????????" | | #??????? """???????? | | ##########"####??????# """???????? | | # #####??????# """???????? | | # #??????????# ??????????? | | / #??????????? ?"""???????? | | # #??????????? ?"""???????? | | # "" "" #??????????# #?"""???????? | | # ""S"" #??????????## #???????????? | | ### """" #???????????# ###???????????? | | ??# #????????????## ????????????????? | | ??###########??????????????###???????????????????? | | ?????????###?????????????????????????????????????? | | ?????????????????????????????????????????????????? | | ?????????????????????????????????????????????????? | | ?????????????????????????????????????????????????? | | ?????????????????????????????????????????????????? | | ?????????????????????????????????????????????????? | | ?????????????????????????????????????????????????? | | ?????????????????????????????????????????????????? | | ?????????????????????????????????????????????????? | | ?????????????????????????????????????????????????? | +----------------------------------------------------+ Best States ------------- Heat Dissipation 40 Energy Generation 28 Energy Capacity 360 Matter Stores 300 Matter Capacity 300 Sight Range 16 Terrain Scan Density 10 ECM Strength 2 Jamming Range 14 Armor Coverage 450 Propulsion Shielding 66 Weapon Shielding 66 Evasion (%) 65 Recoil Reduction 4 Offensive Hacking 20 Item Schematics ----------------- None Robot Schematics ------------------ None Fabricated ------------ Nothing Alien Tech Used ----------------- None Achievements -------------- Can't Catch Me Leap Before You Look Challenges ------------ None Game ------ Seed TacticalThunderCoupler Manual? 0 Play Time 01:40:38 Cumulative 7.8 hours Start 2024.06.11 @ 10:23:39 End 2024.06.11 @ 12:06:05 Sessions 1 Manual Loads 0 Difficulty Rogue Special Mode None Game No. 14 Rogue 7 Adventurer 7 Explorer 0 Win Type - Total 0 Types 0/0/0/0/0/0/0/0/0 Lore% 2 Gallery% 12 Achievement% 15 Wizard Run 0 Options --------- Layout 0 ASCII 0 Keyboard 0 Movement Mouse Keybinds 0 Fullscreen 2 Font 24/Smallcaps Map View 113x50 Zoom Use 0% Tactical HUD 1 Map Filters NONE Filters NONE Steam 1 RUN: 58249654-afb5-4928-bd60-c5363240fb10